[Event "Live Chess"]
[Site "Chess.com"]
[Date "2024.06.01"]
[Round "-"]
[White "Kyrylo7770"]
[Black "imchessive"]
[Result "0-1"]
[WhiteElo "1632"]
[BlackElo "1602"]
[TimeControl "300"]
[EndTime "13:45:48 PDT"]
[Termination "imchessive won by checkmate"]

1. d4 {[%clk 0:04:58.8]} 1... f5 {[%clk 0:04:58.7]} 2. Nf3 {[%clk 0:04:57.9]}
2... Nf6 {[%clk 0:04:58]} 3. Bg5 {[%clk 0:04:57.2]} 3... d6 {[%clk 0:04:55.4]}
4. h4 {[%clk 0:04:56.2]} 4... Nbd7 {[%clk 0:04:54.2]} 5. e3 {[%clk 0:04:55.5]}
5... g6 {[%clk 0:04:53.5]} 6. c3 {[%clk 0:04:53.7]} 6... Ne4 {[%clk 0:04:52.4]}
7. Qb3 {[%clk 0:04:51.9]} 7... Nxg5 {[%clk 0:04:50.8]} 8. Nxg5 {[%clk
0:04:51.4]} 8... e6 {[%clk 0:04:30.5]} 9. Nxe6 {[%clk 0:04:49]} 9... Qe7 {[%clk
0:04:27.6]} 10. Ng5 {[%clk 0:04:48.3]} 10... Nf6 {[%clk 0:04:10]} 11. Bc4 {[%clk
0:04:46]} 11... c6 {[%clk 0:04:02.9]} 12. Bf7+ {[%clk 0:04:44.7]} 12... Kd8
{[%clk 0:03:59.3]} 13. Bc4 {[%clk 0:04:43]} 13... d5 {[%clk 0:03:57.2]} 14. Bd3
{[%clk 0:04:41]} 14... Ne4 {[%clk 0:03:56.2]} 15. Bxe4 {[%clk 0:04:39.9]} 15...
fxe4 {[%clk 0:03:56.1]} 16. Nd2 {[%clk 0:04:38.9]} 16... Bh6 {[%clk 0:03:49.4]}
17. O-O-O {[%clk 0:04:34.7]} 17... Bxg5 {[%clk 0:03:47.5]} 18. hxg5 {[%clk
0:04:34.6]} 18... Qxg5 {[%clk 0:03:47.4]} 19. g3 {[%clk 0:04:33.7]} 19... Bg4
{[%clk 0:03:45.5]} 20. Rde1 {[%clk 0:04:32.4]} 20... Kc7 {[%clk 0:03:40.1]} 21.
Rh4 {[%clk 0:04:30]} 21... Raf8 {[%clk 0:03:29.2]} 22. Qa3 {[%clk 0:04:27.4]}
22... Ra8 {[%clk 0:03:11.2]} 23. Nb3 {[%clk 0:04:24.1]} 23... b6 {[%clk
0:03:09.3]} 24. Reh1 {[%clk 0:04:20.4]} 24... h5 {[%clk 0:03:07.5]} 25. Qb4
{[%clk 0:04:10]} 25... Rhf8 {[%clk 0:03:01.1]} 26. Rf1 {[%clk 0:04:05.5]} 26...
Be2 {[%clk 0:02:55.5]} 27. Re1 {[%clk 0:04:02.8]} 27... Rxf2 {[%clk 0:02:50]}
28. Rf4 {[%clk 0:04:01.8]} 28... Rf8 {[%clk 0:02:14.7]} 29. Qxf8 {[%clk
0:03:56.7]} 29... Rxf4 {[%clk 0:02:04.4]} 30. gxf4 {[%clk 0:03:55.9]} 30... Qg2
{[%clk 0:01:58.5]} 31. Qe7+ {[%clk 0:03:55]} 31... Kb8 {[%clk 0:01:55.8]} 32.
Qd8+ {[%clk 0:03:54.4]} 32... Kb7 {[%clk 0:01:54.5]} 33. Qd7+ {[%clk 0:03:52.1]}
33... Kb8 {[%clk 0:01:53.2]} 34. Qxc6 {[%clk 0:03:48.5]} 34... Bd3 {[%clk
0:01:51.8]} 35. Qd6+ {[%clk 0:03:40.5]} 35... Kc8 {[%clk 0:01:47.1]} 36. Nd2
{[%clk 0:03:36.5]} 36... Qf2 {[%clk 0:01:39.5]} 37. Rd1 {[%clk 0:03:35.2]} 37...
Qxe3 {[%clk 0:01:38.1]} 38. Qxd5 {[%clk 0:03:29.5]} 38... h4 {[%clk 0:01:35]}
39. Qg8+ {[%clk 0:03:26.1]} 39... Kb7 {[%clk 0:01:32.7]} 40. Qf7+ {[%clk
0:03:25.2]} 40... Ka6 {[%clk 0:01:29.3]} 41. Qxg6 {[%clk 0:03:19.8]} 41... h3
{[%clk 0:01:28.1]} 42. a4 {[%clk 0:03:12.2]} 42... Qe2 {[%clk 0:01:23.7]} 43.
Qf5 {[%clk 0:03:03.4]} 43... h2 {[%clk 0:01:21.8]} 44. Qc8+ {[%clk 0:03:00.5]}
44... Ka5 {[%clk 0:01:18.5]} 45. b4+ {[%clk 0:02:59.3]} 45... Kxa4 {[%clk
0:01:10]} 46. Qd7+ {[%clk 0:02:54.6]} 46... Bb5 {[%clk 0:00:56.7]} 47. Qxa7+
{[%clk 0:02:53.6]} 47... Ba6 {[%clk 0:00:55.7]} 48. Qd7+ {[%clk 0:02:52.9]}
48... Bb5 {[%clk 0:00:54.4]} 49. Qh3 {[%clk 0:02:38]} 49... Bd3 {[%clk
0:00:39.1]} 50. Rh1 {[%clk 0:02:35.9]} 50... e3 {[%clk 0:00:34.5]} 51. Rxh2
{[%clk 0:02:32.4]} 51... Qe1+ {[%clk 0:00:26.3]} 52. Kb2 {[%clk 0:02:28]} 52...
exd2 {[%clk 0:00:18.6]} 53. Qxd3 {[%clk 0:02:21.5]} 53... Qc1+ {[%clk
0:00:16.3]} 54. Ka2 {[%clk 0:02:17.1]} 54... Qa3+ {[%clk 0:00:12.2]} 55. Kb1
{[%clk 0:02:14.4]} 55... Qb3+ {[%clk 0:00:11.3]} 56. Ka1 {[%clk 0:02:11.5]}
56... d1=Q+ {[%clk 0:00:10.3]} 57. Qxd1 {[%clk 0:02:10.1]} 57... Qxd1+ {[%clk
0:00:10.2]} 58. Kb2 {[%clk 0:02:09.6]} 58... Qb3+ {[%clk 0:00:09.7]} 59. Kc1
{[%clk 0:02:09]} 59... Ka3 {[%clk 0:00:09.5]} 60. Rc2 {[%clk 0:02:06.2]} 60...
Qc4 {[%clk 0:00:06.5]} 61. Kd2 {[%clk 0:02:05.5]} 61... Kb3 {[%clk 0:00:05.5]}
62. Rc1 {[%clk 0:02:03.6]} 62... Qf7 {[%clk 0:00:04.8]} 63. Rb1+ {[%clk
0:02:02.9]} 63... Kc4 {[%clk 0:00:04.2]} 64. Ra1 {[%clk 0:02:01.2]} 64... Qxf4+
{[%clk 0:00:03.6]} 65. Kc2 {[%clk 0:02:00.2]} 65... Qe4+ {[%clk 0:00:02.8]} 66.
Kb2 {[%clk 0:01:59.4]} 66... Qe2+ {[%clk 0:00:02]} 67. Ka3 {[%clk 0:01:58.3]}
67... Qd3 {[%clk 0:00:01.3]} 68. Rb1 {[%clk 0:01:56]} 68... Qxb1 {[%clk
0:00:00.2]} 69. Ka4 {[%clk 0:01:54.9]} 69... Qb3# {[%clk 0:00:00.1]} 0-1

[Event "Live Chess"]
[Site "Chess.com"]
[Date "2024.06.01"]
[Round "-"]
[White "cymbalshift"]
[Black "kylet1990"]
[Result "1-0"]
[WhiteElo "1595"]
[BlackElo "738"]
[TimeControl "300"]
[EndTime "13:45:56 PDT"]
[Termination "cymbalshift won by resignation"]

1. d4 {[%clk 0:04:58.5]} 1... c6 {[%clk 0:04:58.4]} 2. e4 {[%clk 0:04:56.3]}
2... d5 {[%clk 0:04:56.6]} 3. e5 {[%clk 0:04:55.4]} 3... Bf5 {[%clk 0:04:54.5]}
4. Nc3 {[%clk 0:04:54.5]} 4... e6 {[%clk 0:04:48.7]} 5. g4 {[%clk 0:04:54]} 5...
Bg6 {[%clk 0:04:43.1]} 6. h4 {[%clk 0:04:52.7]} 6... h5 {[%clk 0:04:40.3]} 7.
Be2 {[%clk 0:04:37.5]} 7... hxg4 {[%clk 0:04:32.4]} 8. Bxg4 {[%clk 0:04:31]}
8... Bb4 {[%clk 0:04:26.7]} 9. h5 {[%clk 0:04:21.9]} 9... Bxc3+ {[%clk 0:04:22]}
10. bxc3 {[%clk 0:04:20.4]} 10... Be4 {[%clk 0:04:18.7]} 11. Rh2 {[%clk
0:04:07.6]} 11... Nf6 {[%clk 0:04:08.7]} 12. exf6 {[%clk 0:04:01.7]} 12... Qxf6
{[%clk 0:03:57.5]} 13. f3 {[%clk 0:03:56.5]} 13... Bf5 {[%clk 0:03:51.8]} 14.
Qe2 {[%clk 0:03:47.1]} 14... Nd7 {[%clk 0:03:43]} 15. Ba3 {[%clk 0:03:37]} 15...
Bxg4 {[%clk 0:03:35.5]} 16. fxg4 {[%clk 0:03:33.9]} 16... O-O-O {[%clk
0:03:04.3]} 17. Rb1 {[%clk 0:03:23.7]} 17... Nb6 {[%clk 0:02:55.3]} 18. Bc5
{[%clk 0:03:12.9]} 18... Rde8 {[%clk 0:02:19.7]} 19. Nf3 {[%clk 0:03:09.4]}
19... e5 {[%clk 0:02:17]} 20. dxe5 {[%clk 0:03:06.2]} 20... Qf4 {[%clk
0:02:09.3]} 21. Kd1 {[%clk 0:02:38.5]} 21... f6 {[%clk 0:02:00.2]} 22. Bd6
{[%clk 0:02:22.7]} 22... fxe5 {[%clk 0:01:53.1]} 23. Nxe5 {[%clk 0:02:07.7]}
23... Re6 {[%clk 0:01:42.5]} 24. Rf2 {[%clk 0:02:02.4]} 24... Qg3 {[%clk
0:01:32.9]} 25. Qf3 {[%clk 0:01:39.5]} 25... Qg1+ {[%clk 0:01:29.2]} 26. Rf1
{[%clk 0:01:37.6]} 26... Qh2 {[%clk 0:01:25.6]} 27. Qf5 {[%clk 0:01:18.4]} 27...
Re8 {[%clk 0:01:15]} 28. Re1 {[%clk 0:01:09.6]} 28... Nc4 {[%clk 0:01:09.5]} 29.
Nxc4 {[%clk 0:00:55.8]} 29... dxc4 {[%clk 0:01:02]} 30. Rxe6 {[%clk 0:00:49.9]}
30... Qg1+ {[%clk 0:00:57.8]} 31. Re1+ {[%clk 0:00:47.2]} 1-0

[Event "Live Chess"]
[Site "Chess.com"]
[Date "2024.06.01"]
[Round "-"]
[White "AlexanderMatlak"]
[Black "ACM42"]
[Result "0-1"]
[WhiteElo "2452"]
[BlackElo "2170"]
[TimeControl "300"]
[EndTime "13:46:05 PDT"]
[Termination "ACM42 won by resignation"]

1. c4 {[%clk 0:04:57.1]} 1... Nf6 {[%clk 0:04:57.8]} 2. Nf3 {[%clk 0:04:55.9]}
2... g6 {[%clk 0:04:57.3]} 3. Nc3 {[%clk 0:04:55.1]} 3... Bg7 {[%clk 0:04:56.8]}
4. g3 {[%clk 0:04:54.5]} 4... O-O {[%clk 0:04:56.3]} 5. Bg2 {[%clk 0:04:53.9]}
5... c5 {[%clk 0:04:55.5]} 6. O-O {[%clk 0:04:53]} 6... d6 {[%clk 0:04:54.8]} 7.
d4 {[%clk 0:04:52.2]} 7... Nc6 {[%clk 0:04:54.1]} 8. d5 {[%clk 0:04:51.6]} 8...
Na5 {[%clk 0:04:52.9]} 9. Nd2 {[%clk 0:04:50.9]} 9... a6 {[%clk 0:04:52.2]} 10.
Qc2 {[%clk 0:04:50.2]} 10... b5 {[%clk 0:04:51.6]} 11. cxb5 {[%clk 0:04:49.1]}
11... axb5 {[%clk 0:04:49.5]} 12. Nxb5 {[%clk 0:04:48.3]} 12... Ba6 {[%clk
0:04:48.6]} 13. Nc3 {[%clk 0:04:47.6]} 13... Qb6 {[%clk 0:04:43.5]} 14. b3
{[%clk 0:04:46.7]} 14... Rfb8 {[%clk 0:04:42.5]} 15. Bb2 {[%clk 0:04:46.1]}
15... c4 {[%clk 0:04:41.5]} 16. Na4 {[%clk 0:04:17.9]} 16... Qb7 {[%clk
0:04:16.7]} 17. Bc3 {[%clk 0:04:07.4]} 17... cxb3 {[%clk 0:03:56.7]} 18. axb3
{[%clk 0:04:07.3]} 18... Rc8 {[%clk 0:03:55.6]} 19. Qb2 {[%clk 0:03:48.1]} 19...
Bxe2 {[%clk 0:03:21.9]} 20. Rfe1 {[%clk 0:03:42.3]} 20... Bd3 {[%clk 0:03:09.9]}
21. Re3 {[%clk 0:03:33.3]} 21... Bf5 {[%clk 0:02:26.2]} 22. Bd4 {[%clk
0:03:15.7]} 22... Rc2 {[%clk 0:02:21.4]} 23. Bxf6 {[%clk 0:02:58.9]} 23... Bxf6
{[%clk 0:02:14.9]} 0-1

[Event "Live Chess"]
[Site "Chess.com"]
[Date "2024.06.01"]
[Round "-"]
[White "GEMdzq"]
[Black "Stanbad1"]
[Result "1-0"]
[WhiteElo "2319"]
[BlackElo "2638"]
[TimeControl "300"]
[EndTime "13:46:32 PDT"]
[Termination "GEMdzq won by resignation"]

1. e4 {[%clk 0:04:57.8]} 1... e6 {[%clk 0:04:52.8]} 2. d4 {[%clk 0:04:56.9]}
2... d5 {[%clk 0:04:51.4]} 3. Nc3 {[%clk 0:04:55.4]} 3... Nf6 {[%clk 0:04:50.1]}
4. Bg5 {[%clk 0:04:53.7]} 4... Bb4 {[%clk 0:04:48.6]} 5. e5 {[%clk 0:04:51.9]}
5... h6 {[%clk 0:04:47.4]} 6. exf6 {[%clk 0:04:51.1]} 6... hxg5 {[%clk
0:04:45.8]} 7. fxg7 {[%clk 0:04:50.3]} 7... Rg8 {[%clk 0:04:44.5]} 8. h4 {[%clk
0:04:49.8]} 8... gxh4 {[%clk 0:04:43.3]} 9. Qh5 {[%clk 0:04:48.9]} 9... Qf6
{[%clk 0:04:37.8]} 10. Qxh4 {[%clk 0:04:47.9]} 10... Qxg7 {[%clk 0:04:36.2]} 11.
Nf3 {[%clk 0:04:45.8]} 11... Be7 {[%clk 0:04:33.9]} 12. Qf4 {[%clk 0:04:44.2]}
12... a6 {[%clk 0:04:29]} 13. Qxc7 {[%clk 0:04:36.5]} 13... Nc6 {[%clk
0:04:27.3]} 14. Qf4 {[%clk 0:04:34.9]} 14... Bd7 {[%clk 0:04:24.7]} 15. O-O-O
{[%clk 0:04:33.9]} 15... Rc8 {[%clk 0:04:23]} 16. Kb1 {[%clk 0:04:31.2]} 16...
b5 {[%clk 0:04:21.1]} 17. Bd3 {[%clk 0:04:25.6]} 17... Na5 {[%clk 0:04:17.6]}
18. Rh7 {[%clk 0:04:19]} 18... Qf6 {[%clk 0:04:14.2]} 19. Qe3 {[%clk 0:04:04.6]}
19... Nc4 {[%clk 0:04:11.3]} 20. Bxc4 {[%clk 0:04:03.1]} 20... bxc4 {[%clk
0:04:08.9]} 21. Ne5 {[%clk 0:04:02.4]} 21... Rf8 {[%clk 0:04:00.3]} 22. f4
{[%clk 0:03:43.3]} 22... Qf5 {[%clk 0:03:58.3]} 23. Rdh1 {[%clk 0:03:34.6]}
23... Rb8 {[%clk 0:03:53.3]} 24. g4 {[%clk 0:03:33]} 24... Qf6 {[%clk
0:03:51.1]} 25. f5 {[%clk 0:03:29.3]} 25... Qg5 {[%clk 0:03:45.9]} 26. Qe2
{[%clk 0:03:24.1]} 26... Qf4 {[%clk 0:03:41.6]} 27. Nxd7 {[%clk 0:03:17]} 27...
Kxd7 {[%clk 0:03:39.2]} 28. fxe6+ {[%clk 0:03:16.3]} 28... fxe6 {[%clk
0:03:37.8]} 29. Rxe7+ {[%clk 0:03:09.3]} 29... Kd8 {[%clk 0:03:36]} 30. Re1
{[%clk 0:02:53.7]} 30... Qxd4 {[%clk 0:03:09.9]} 31. Qxe6 {[%clk 0:02:51]} 1-0

[Event "Live Chess"]
[Site "Chess.com"]
[Date "2024.06.01"]
[Round "-"]
[White "DoggyDalmatian"]
[Black "jk0110"]
[Result "1-0"]
[WhiteElo "1549"]
[BlackElo "1222"]
[TimeControl "300"]
[EndTime "13:46:34 PDT"]
[Termination "DoggyDalmatian won on time"]

1. e4 {[%clk 0:04:54.9]} 1... e5 {[%clk 0:04:58.6]} 2. Nf3 {[%clk 0:04:54.1]}
2... Nc6 {[%clk 0:04:57.4]} 3. Bc4 {[%clk 0:04:53.6]} 3... f5 {[%clk 0:04:55.8]}
4. exf5 {[%clk 0:04:51.1]} 4... e4 {[%clk 0:04:53.6]} 5. Qe2 {[%clk 0:04:49.2]}
5... Qe7 {[%clk 0:04:51.7]} 6. Ng1 {[%clk 0:04:33.5]} 6... Nf6 {[%clk
0:04:49.3]} 7. d3 {[%clk 0:04:30.4]} 7... Nd4 {[%clk 0:04:35.3]} 8. Qd1 {[%clk
0:04:28.4]} 8... Nxc2+ {[%clk 0:04:31.2]} 9. Kf1 {[%clk 0:04:17.2]} 9... Nxa1
{[%clk 0:04:21.8]} 10. d4 {[%clk 0:04:11.6]} 10... d5 {[%clk 0:04:15.5]} 11. Be2
{[%clk 0:04:08.1]} 11... Bxf5 {[%clk 0:04:09.6]} 12. Nc3 {[%clk 0:04:06.7]}
12... Qb4 {[%clk 0:03:52.5]} 13. a3 {[%clk 0:03:59.2]} 13... Qa5 {[%clk
0:03:35.6]} 14. Be3 {[%clk 0:03:51]} 14... Bxa3 {[%clk 0:03:20.3]} 15. Qxa1
{[%clk 0:03:47]} 15... Bb4 {[%clk 0:03:12.8]} 16. Qxa5 {[%clk 0:03:43.1]} 16...
Bxa5 {[%clk 0:03:10.5]} 17. Nb5 {[%clk 0:03:35.7]} 17... O-O {[%clk 0:03:05]}
18. f3 {[%clk 0:03:29.3]} 18... c6 {[%clk 0:02:52.4]} 19. Na3 {[%clk 0:03:10.8]}
19... Bg4 {[%clk 0:02:31.1]} 20. h3 {[%clk 0:02:53.2]} 20... Bh5 {[%clk
0:02:23.2]} 21. Bd1 {[%clk 0:02:32.6]} 21... Bg6 {[%clk 0:02:00.2]} 22. Ke2
{[%clk 0:02:25.8]} 22... Nd7 {[%clk 0:01:32.1]} 23. h4 {[%clk 0:02:20.8]} 23...
exf3+ {[%clk 0:01:16.9]} 24. Nxf3 {[%clk 0:02:06.5]} 24... Bh5 {[%clk
0:01:09.6]} 25. Nc2 {[%clk 0:01:54.6]} 25... Rae8 {[%clk 0:00:55.7]} 26. b4
{[%clk 0:01:38.4]} 26... Bb6 {[%clk 0:00:51.1]} 27. Kd2 {[%clk 0:01:27.2]} 27...
Bxf3 {[%clk 0:00:36.3]} 28. Bxf3 {[%clk 0:01:25.4]} 28... Nf6 {[%clk 0:00:25.1]}
29. Kd3 {[%clk 0:01:10.9]} 29... Ne4 {[%clk 0:00:19.8]} 30. h5 {[%clk
0:01:04.2]} 30... a5 {[%clk 0:00:13.1]} 31. Rb1 {[%clk 0:00:57.3]} 31... axb4
{[%clk 0:00:11.4]} 32. Rxb4 {[%clk 0:00:56.1]} 32... Bc7 {[%clk 0:00:10.6]} 33.
Rxb7 {[%clk 0:00:55]} 33... Bd8 {[%clk 0:00:08.7]} 34. Nb4 {[%clk 0:00:50]}
34... Re7 {[%clk 0:00:07.9]} 35. Rxe7 {[%clk 0:00:44.8]} 35... Bxe7 {[%clk
0:00:07.8]} 36. Nxc6 {[%clk 0:00:44.5]} 36... Bd6 {[%clk 0:00:06.6]} 37. Bxe4
{[%clk 0:00:39.4]} 37... Ra8 {[%clk 0:00:06.1]} 38. Bxd5+ {[%clk 0:00:38.1]}
38... Kh8 {[%clk 0:00:04]} 39. Ne5 {[%clk 0:00:35.6]} 39... Ra3+ {[%clk
0:00:03.1]} 40. Ke4 {[%clk 0:00:33.9]} 40... Bxe5 {[%clk 0:00:02.5]} 41. dxe5
{[%clk 0:00:33.1]} 41... Ra4+ {[%clk 0:00:01.8]} 42. Kd3 {[%clk 0:00:32.2]}
42... Ra5 {[%clk 0:00:00.9]} 43. Bc4 {[%clk 0:00:30.9]} 43... Rxe5 {[%clk
0:00:00.1]} 44. Kd4 {[%clk 0:00:29.5]} 1-0

[Event "Live Chess"]
[Site "Chess.com"]
[Date "2024.06.01"]
[Round "-"]
[White "jellhhggffhjjjjjj"]
[Black "kingside_rook"]
[Result "1-0"]
[WhiteElo "227"]
[BlackElo "2019"]
[TimeControl "300"]
[EndTime "13:46:38 PDT"]
[Termination "jellhhggffhjjjjjj won by checkmate"]

1. d4 {[%clk 0:04:54.8]} 1... Nf6 {[%clk 0:04:59.3]} 2. Nf3 {[%clk 0:04:52.6]}
2... c5 {[%clk 0:04:58.9]} 3. c3 {[%clk 0:04:47.4]} 3... cxd4 {[%clk 0:04:58.8]}
4. cxd4 {[%clk 0:04:45.7]} 4... d5 {[%clk 0:04:58.7]} 5. Bf4 {[%clk 0:04:43.7]}
5... Nc6 {[%clk 0:04:56.5]} 6. e3 {[%clk 0:04:42.5]} 6... Bf5 {[%clk 0:04:54.4]}
7. Nc3 {[%clk 0:04:40.2]} 7... e6 {[%clk 0:04:50.8]} 8. Bd3 {[%clk 0:04:38.4]}
8... Bxd3 {[%clk 0:04:45.7]} 9. Qxd3 {[%clk 0:04:36.4]} 9... Bd6 {[%clk
0:04:45.6]} 10. Bg3 {[%clk 0:04:33]} 10... Bxg3 {[%clk 0:04:44.2]} 11. fxg3
{[%clk 0:04:31.3]} 11... a6 {[%clk 0:04:43.4]} 12. O-O {[%clk 0:04:29.3]} 12...
b5 {[%clk 0:04:40.3]} 13. a4 {[%clk 0:04:22.7]} 13... b4 {[%clk 0:04:38.5]} 14.
Ne2 {[%clk 0:04:19.9]} 14... Ne7 {[%clk 0:04:36.7]} 15. Qc2 {[%clk 0:04:06.2]}
15... O-O {[%clk 0:04:34.4]} 16. Ra3 {[%clk 0:03:50.9]} 16... bxa3 {[%clk
0:04:32.6]} 17. bxa3 {[%clk 0:03:48.9]} 17... Nf5 {[%clk 0:04:32.5]} 18. Nf4
{[%clk 0:03:43.4]} 18... Nxe3 {[%clk 0:04:30.7]} 19. Qe2 {[%clk 0:03:40.3]}
19... Nxf1 {[%clk 0:04:30.3]} 20. Qxf1 {[%clk 0:03:38.5]} 20... Qb6 {[%clk
0:04:29.7]} 21. Ne5 {[%clk 0:03:34.9]} 21... Qxd4+ {[%clk 0:04:28.3]} 22. Qf2
{[%clk 0:03:17.6]} 22... Qxe5 {[%clk 0:04:28.2]} 23. Qc5 {[%clk 0:03:13.8]}
23... Ne4 {[%clk 0:04:28.1]} 24. h4 {[%clk 0:03:03.4]} 24... Qa1+ {[%clk
0:04:26.4]} 25. Kh2 {[%clk 0:03:01.6]} 25... Qc1 {[%clk 0:04:26.3]} 26. Qxc1
{[%clk 0:02:54.8]} 26... Rac8 {[%clk 0:04:25.9]} 27. Qb2 {[%clk 0:02:51.4]}
27... Rb8 {[%clk 0:04:25]} 28. Qd4 {[%clk 0:02:48.8]} 28... Rfc8 {[%clk
0:04:24.9]} 29. Nh5 {[%clk 0:02:42.6]} 29... f6 {[%clk 0:04:23]} 30. Nf4 {[%clk
0:02:35.5]} 30... Kf7 {[%clk 0:04:19.7]} 31. Nxd5 {[%clk 0:02:33.4]} 31... Rd8
{[%clk 0:04:12.8]} 32. Qa7+ {[%clk 0:02:19.9]} 32... Kg8 {[%clk 0:04:10.5]} 33.
Nf4 {[%clk 0:02:12.8]} 33... Ra8 {[%clk 0:04:01.1]} 34. Qe7 {[%clk 0:02:07.4]}
34... Re8 {[%clk 0:04:00.2]} 35. Qd7 {[%clk 0:02:01]} 35... Rad8 {[%clk
0:03:58.8]} 36. Qc7 {[%clk 0:01:58.2]} 36... Rc8 {[%clk 0:03:57.5]} 37. Qa5
{[%clk 0:01:52.9]} 37... e5 {[%clk 0:03:56.4]} 38. Nd5 {[%clk 0:01:44.9]} 38...
Nd6 {[%clk 0:03:54.2]} 39. Qxa6 {[%clk 0:01:40.1]} 39... Nf5 {[%clk 0:03:51.7]}
40. Qa7 {[%clk 0:01:33.5]} 40... Rc1 {[%clk 0:03:47.7]} 41. Ne7+ {[%clk
0:01:30.1]} 41... Rxe7 {[%clk 0:03:46.4]} 42. Qa8+ {[%clk 0:01:26.8]} 42... Kf7
{[%clk 0:03:45.2]} 43. Qd5+ {[%clk 0:01:22.3]} 43... Kg6 {[%clk 0:03:44.6]} 44.
h5+ {[%clk 0:01:04.6]} 44... Kg5 {[%clk 0:03:42.2]} 45. Qd2+ {[%clk 0:00:59.1]}
45... Kxh5 {[%clk 0:03:41.3]} 46. Qxc1 {[%clk 0:00:56.9]} 46... e4 {[%clk
0:03:41]} 47. Qf4 {[%clk 0:00:52.8]} 47... Nh6 {[%clk 0:03:37.6]} 48. Qh4+
{[%clk 0:00:47.8]} 48... Kg6 {[%clk 0:03:37.5]} 49. g4 {[%clk 0:00:38.7]} 49...
e3 {[%clk 0:03:37.4]} 50. Qh5# {[%clk 0:00:36.9]} 1-0

[Event "Live Chess"]
[Site "Chess.com"]
[Date "2024.06.01"]
[Round "-"]
[White "nitrofish07"]
[Black "road2gm5000"]
[Result "1-0"]
[WhiteElo "2095"]
[BlackElo "1080"]
[TimeControl "300"]
[EndTime "13:46:41 PDT"]
[Termination "nitrofish07 won by checkmate"]

1. e4 {[%clk 0:04:59.1]} 1... c6 {[%clk 0:04:55.6]} 2. d4 {[%clk 0:04:58]} 2...
d5 {[%clk 0:04:54.7]} 3. e5 {[%clk 0:04:57.5]} 3... c5 {[%clk 0:04:53.8]} 4. c3
{[%clk 0:04:55.6]} 4... Nc6 {[%clk 0:04:52.7]} 5. Nf3 {[%clk 0:04:54.4]} 5...
cxd4 {[%clk 0:04:51.6]} 6. cxd4 {[%clk 0:04:53.6]} 6... Bg4 {[%clk 0:04:50.7]}
7. Nc3 {[%clk 0:04:52.9]} 7... e6 {[%clk 0:04:49.8]} 8. Bb5 {[%clk 0:04:51.8]}
8... Bb4 {[%clk 0:04:48.5]} 9. h3 {[%clk 0:04:51.2]} 9... Bxf3 {[%clk 0:04:47]}
10. Qxf3 {[%clk 0:04:50.3]} 10... Ne7 {[%clk 0:04:46.5]} 11. Bg5 {[%clk
0:04:49]} 11... h6 {[%clk 0:04:44.1]} 12. Be3 {[%clk 0:04:47.2]} 12... Nf5
{[%clk 0:04:42.5]} 13. g4 {[%clk 0:04:43.9]} 13... Ne7 {[%clk 0:04:36.6]} 14. a3
{[%clk 0:04:42.3]} 14... Ba5 {[%clk 0:04:33.5]} 15. O-O {[%clk 0:04:39.5]} 15...
O-O {[%clk 0:04:31.8]} 16. Kg2 {[%clk 0:04:38.2]} 16... Bb6 {[%clk 0:04:25.8]}
17. Rad1 {[%clk 0:04:35.7]} 17... a6 {[%clk 0:04:20]} 18. Bd3 {[%clk 0:04:33.5]}
18... Bxd4 {[%clk 0:04:07.6]} 19. Bxd4 {[%clk 0:04:22.1]} 19... Nxd4 {[%clk
0:04:07.5]} 20. Qe3 {[%clk 0:04:17.2]} 20... Ndc6 {[%clk 0:03:53.5]} 21. Bb1
{[%clk 0:03:54.1]} 21... Qc7 {[%clk 0:03:51.6]} 22. Qd3 {[%clk 0:03:51.5]} 22...
Ng6 {[%clk 0:03:47.5]} 23. f4 {[%clk 0:03:49.7]} 23... Ncxe5 {[%clk 0:03:39]}
24. fxe5 {[%clk 0:03:47.4]} 24... Qxe5 {[%clk 0:03:38.9]} 25. Rde1 {[%clk
0:03:43]} 25... Nf4+ {[%clk 0:03:31.9]} 26. Rxf4 {[%clk 0:03:41.8]} 26... Qxf4
{[%clk 0:03:31.1]} 27. Qh7# {[%clk 0:03:40.6]} 1-0

[Event "Live Chess"]
[Site "Chess.com"]
[Date "2024.06.01"]
[Round "-"]
[White "RichardABates"]
[Black "bobby_jamesFischer86"]
[Result "1-0"]
[WhiteElo "2220"]
[BlackElo "1608"]
[TimeControl "300"]
[EndTime "13:47:00 PDT"]
[Termination "RichardABates won by resignation"]

1. d4 {[%clk 0:04:57.6]} 1... d5 {[%clk 0:04:45.1]} 2. c4 {[%clk 0:04:56.1]}
2... c6 {[%clk 0:04:42.8]} 3. Nf3 {[%clk 0:04:54.6]} 3... Nf6 {[%clk 0:04:41.6]}
4. Nc3 {[%clk 0:04:52.4]} 4... e6 {[%clk 0:04:40.5]} 5. e3 {[%clk 0:04:50.4]}
5... Be7 {[%clk 0:04:38.9]} 6. Qc2 {[%clk 0:04:46.3]} 6... O-O {[%clk
0:04:36.6]} 7. g4 {[%clk 0:04:45]} 7... a6 {[%clk 0:04:31.8]} 8. g5 {[%clk
0:04:43.1]} 8... Nfd7 {[%clk 0:04:30.4]} 9. h4 {[%clk 0:04:41.4]} 9... Qc7
{[%clk 0:04:23.1]} 10. h5 {[%clk 0:04:38.9]} 10... e5 {[%clk 0:04:21.8]} 11.
cxd5 {[%clk 0:04:27.5]} 11... cxd5 {[%clk 0:04:18.7]} 12. Bd3 {[%clk 0:04:25.5]}
12... e4 {[%clk 0:04:16.7]} 13. Nxd5 {[%clk 0:04:24]} 13... Qxc2 {[%clk
0:04:14.6]} 14. Nxe7+ {[%clk 0:04:22.3]} 14... Kh8 {[%clk 0:04:13.4]} 15. Bxc2
{[%clk 0:04:21]} 15... exf3 {[%clk 0:04:10]} 16. Be4 {[%clk 0:04:13.5]} 16...
Re8 {[%clk 0:04:04.6]} 17. Nxc8 {[%clk 0:04:12]} 17... Rxe4 {[%clk 0:04:01.8]}
18. Nd6 {[%clk 0:04:08.7]} 18... Re7 {[%clk 0:03:52.8]} 19. Bd2 {[%clk
0:04:07.3]} 19... Nc6 {[%clk 0:03:48.3]} 20. Kf1 {[%clk 0:04:03.7]} 20... b5
{[%clk 0:03:42]} 21. a3 {[%clk 0:04:00.6]} 21... Rd8 {[%clk 0:03:28.7]} 22. g6
{[%clk 0:03:58.4]} 22... fxg6 {[%clk 0:03:24.7]} 23. hxg6 {[%clk 0:03:57]} 23...
h6 {[%clk 0:03:23.5]} 24. Nf7+ {[%clk 0:03:55.1]} 24... Rxf7 {[%clk 0:03:21.8]}
25. gxf7 {[%clk 0:03:54]} 25... Rf8 {[%clk 0:03:20.9]} 26. Rc1 {[%clk
0:03:51.1]} 26... Nd8 {[%clk 0:03:16.6]} 27. Rc7 {[%clk 0:03:44.8]} 27... Nf6
{[%clk 0:03:14.5]} 28. Bb4 {[%clk 0:03:35.1]} 28... Ne6 {[%clk 0:03:11.2]} 29.
Bxf8 {[%clk 0:03:30.5]} 29... Nxc7 {[%clk 0:03:09.6]} 30. Bd6 {[%clk 0:03:29.3]}
1-0